bitfinex-derivatives/quotes_ETHF0:USTF0_20251012
["timestamp","ask_amount","ask_price","bid_price","bid_amount"]
[1760260033365,0.93272,3817.9,3817.8,4.0153]
[1760260034071,0.93272,3817.9,3817.8,4.01798084]
[1760260037074,0.69062,3817.9,3817.8,4.01798084]
[1760260038965,1.17833,3817.1,3815.5,3.2078]
[1760260039172,1.26278,3815.8,3815.7,0.3102]
[1760260039376,40.8,3815.8,3815.7,0.3102]
[1760260039677,0.1323,3816.5,3815.7,0.3102]
[1760260039678,0.47145,3816.1,3815.7,0.3102]
[1760260039877,0.47148,3815.8,3815.7,0.31326528]
[1760260040878,0.80128,3815.8,3815.7,0.31326528]
[1760260041384,4.99302464,3815.8,3815.7,0.00306528]
[1760260042679,45.79302464,3815.8,3815.7,0.00306528]
[1760260044187,0.80139,3814.9,3814.8,0.3102]
[1760260044694,0.3298,3814.4,3813.7,3.2078]
[1760260044985,1.0209,3814.1,3814.0,0.1551]
[1760260045180,45.2708,3814.1,3814.0,0.15827486]
[1760260045485,44.7991,3814.1,3814.0,0.31337486]
[1760260046286,40.8,3814.1,3814.0,0.41027486]
[1760260046588,41.1298,3814.1,3814.0,0.31337486]
[1760260046985,41.3492,3814.1,3814.0,0.31337486]
[1760260047186,41.5913,3814.1,3814.0,0.31337486]
[1760260047782,41.3492,3814.1,3814.0,0.31337486]
[1760260048089,44.7991,3814.1,3814.0,0.00317486]
[1760260048386,45.32154464,3814.1,3814.0,0.00317486]
[1760260048690,40.8,3814.1,3814.0,0.41027486]
[1760260048890,41.1298,3814.1,3814.0,0.41027486]
[1760260049992,40.8,3814.1,3814.0,0.41027486]
[1760260050292,0.1323,3815.0,3814.2,1.40709906]
[1760260050490,0.3298,3814.8,3814.1,1.17924]
[1760260050685,0.3298,3814.7,3814.1,1.50405656]
[1760260050885,41.1298,3814.7,3814.1,1.50405656]
[1760260051189,41.1298,3814.7,3814.6,0.47163]
[1760260051388,0.3298,3814.7,3814.6,0.47163]
[1760260052188,0.3298,3814.4,3814.1,0.47169]
[1760260052388,0.3298,3814.3,3814.2,0.47168]
[1760260052896,41.1298,3814.3,3814.2,0.47168]
[1760260053793,41.1298,3814.3,3814.2,0.56858]
[1760260054295,0.3298,3814.3,3814.2,0.56858]
[1760260055490,0.3298,3814.8,3814.7,0.47162]
[1760260055695,0.4621,3815.0,3814.9,0.78179]
[1760260056496,0.5492,3814.4,3814.3,0.1551]
[1760260056790,0.1323,3814.5,3814.3,0.87877]
[1760260056989,0.3298,3814.7,3814.6,0.78183]
[1760260057294,41.3492,3814.7,3814.6,0.78183]
[1760260057596,42.11374464,3814.7,3814.6,0.78183]
[1760260059398,42.92415187,3814.7,3814.6,0.78183]
[1760260059598,40.8,3814.7,3814.6,0.87873]
[1760260059798,0.3641,3815.0,3814.9,0.1537]
[1760260060000,2.27507951,3815.0,3814.9,0.1537]
[1760260060188,2.27507951,3815.0,3814.3,0.0961]
[1760260060189,2.27507951,3815.0,3814.8,0.4716]
[1760260060395,42.42033487,3814.9,3814.8,0.4716]
[1760260060694,42.42033487,3814.9,3814.8,0.6253]
[1760260060895,42.42033487,3814.9,3814.8,0.3074]
[1760260061200,42.42033487,3814.9,3814.8,0.1537]
[1760260061407,42.94277951,3814.9,3814.8,0.1537]
[1760260061893,42.94277951,3814.9,3814.8,0.62531]
[1760260063099,42.94277951,3814.9,3814.8,0.47161]
[1760260063493,42.94277951,3814.9,3814.0,4.48483486]
[1760260063494,42.13287951,3814.9,3814.0,4.48483486]
[1760260063700,0.9247,3814.5,3814.4,0.47165]
[1760260063895,0.2219,3814.1,3814.0,3.83407486]
[1760260064099,1.59983487,3814.1,3814.0,3.83407486]
[1760260064603,1.59983487,3814.1,3814.0,3.36237486]
[1760260065094,0.81043487,3814.1,3814.0,3.98547486]
[1760260065302,1.15643487,3814.1,3814.0,3.98547486]
[1760260065499,1.15643487,3814.1,3814.0,4.08007486]
[1760260065693,1.15643487,3814.1,3814.0,3.98547486]
[1760260065893,1.37833487,3814.1,3814.0,3.98547486]
[1760260068906,2.99304156,3814.1,3814.0,3.98547486]
[1760260069200,1.59983487,3814.1,3814.0,3.98547486]
[1760260070398,2.12227951,3814.1,3814.0,3.98547486]
[1760260070598,2.12227951,3814.1,3814.0,3.36237486]
[1760260070908,2.12227951,3814.1,3814.0,3.68267486]
[1760260071102,2.12227951,3814.1,3814.0,3.83407486]
[1760260071602,3.98234831,3814.1,3814.0,0.00317486]
[1760260071801,4.45403831,3814.1,3814.0,0.00317486]
[1760260072202,43.39396951,3814.1,3814.0,0.00317486]
[1760260072702,48.39396951,3814.1,3814.0,0.00317486]
[1760260072904,1.44714464,3813.5,3813.0,3.2078]
[1760260073101,1.44714464,3813.5,3813.0,3.98243]
[1760260073102,2.18458017,3813.1,3813.0,3.98243]
[1760260073303,1.90077951,3813.1,3813.0,3.98243]
[1760260073509,1.67887951,3813.1,3813.0,3.98243]
[1760260073705,42.92227951,3813.1,3813.0,3.98243]
[1760260073903,42.92426384,3813.1,3813.0,3.98434452]
[1760260074105,42.92426384,3813.1,3813.0,3.83294452]
[1760260074407,44.78450407,3813.1,3813.0,0.00191452]
[1760260074602,45.25632407,3813.1,3813.0,0.00191452]
[1760260074806,0.7894,3812.3,3812.2,0.1514]
[1760260075001,3.11309489,3812.3,3812.1,3.67974]
[1760260075309,0.1353,3812.5,3812.1,3.3592]
[1760260075310,1.77627951,3812.2,3812.1,3.3592]
[1760260075501,42.92227951,3812.2,3812.1,3.3592]
[1760260075696,42.92227951,3812.2,3812.1,3.5106]
[1760260075904,42.92227951,3812.2,3812.1,3.36193118]
[1760260076311,44.78153953,3812.2,3812.1,0.00273118]
[1760260076607,42.92227951,3812.2,3812.1,0.00273118]
[1760260078006,42.92227951,3812.2,3812.1,0.30553118]
[1760260079102,42.92227951,3812.2,3812.1,0.15413118]
[1760260080207,41.95643487,3812.2,3812.1,0.40013118]
[1760260080402,42.88251943,3812.2,3812.1,0.40013118]
[1760260080806,43.62686407,3812.2,3812.1,0.30553118]
[1760260081007,2.12227951,3812.2,3812.1,0.00273118]
[1760260081406,42.92227951,3812.2,3812.1,0.15413118]
[1760260081705,2.12227951,3812.2,3812.1,0.15413118]
[1760260082206,2.12227951,3812.2,3812.1,0.00273118]
[1760260082207,42.92227951,3812.2,3812.1,0.00273118]
[1760260082407,43.84747174,3812.2,3812.1,0.00273118]
[1760260082808,43.84747174,3812.2,3812.1,0.47467118]
[1760260083311,42.92227951,3812.2,3812.1,0.62607118]
[1760260083712,42.92227951,3812.2,3812.1,0.77747118]
[1760260085006,42.39983487,3812.2,3812.1,0.77747118]
[1760260085201,1.15643487,3812.2,3812.1,0.77747118]
[1760260085404,2.12227951,3812.2,3812.1,0.77747118]
[1760260085607,42.92227951,3812.2,3812.1,0.77747118]
[1760260085911,2.12227951,3812.2,3812.1,0.77747118]
[1760260086314,2.12227951,3812.2,3812.1,0.62607118]
[1760260087804,2.12227951,3812.2,3812.1,0.77747118]
[1760260088409,2.12227951,3812.2,3812.1,0.00273118]
[1760260088712,2.12227951,3812.2,3812.1,0.30553118]
[1760260088910,2.12227951,3812.2,3812.1,0.77747118]
[1760260089211,1.31184464,3812.2,3812.1,0.77747118]
[1760260090812,0.346,3812.2,3812.1,0.87377118]
[1760260091008,0.1353,3812.5,3812.4,0.4719]
[1760260091307,3.2078,3812.7,3812.6,0.87618]
[1760260091505,3.5644,3812.7,3812.6,0.77988]
[1760260091912,3.5644,3812.7,3812.6,0.87618]
[1760260092514,3.5644,3812.7,3812.6,0.77988]
[1760260092808,3.2078,3812.7,3812.6,0.87618]
[1760260093112,3.7971,3812.7,3812.6,0.77988]
[1760260093907,0.5893,3812.7,3812.6,0.77988]
[1760260094506,0.7223,3813.0,3812.9,0.77984]
[1760260094708,1.24474464,3813.0,3812.9,0.77984]
[1760260095410,0.3566,3813.0,3812.9,0.87614]
[1760260095814,0.4896,3813.0,3812.9,0.77984]
[1760260096010,0.00198433,3813.1,3813.0,0.72213]
[1760260096215,0.4717,3814.1,3813.0,0.72213]
[1760260096216,0.5879,3814.0,3813.9,0.70342]
[1760260096606,41.91034464,3814.0,3813.9,0.94372]
[1760260096806,41.91034464,3814.0,3813.9,1.30032]
[1760260097204,41.91316875,3814.0,3813.9,1.30032]
[1760260097410,41.77786875,3814.0,3813.9,1.30032]
[1760260098612,42.13446875,3814.0,3813.9,1.30032]
[1760260098807,41.91456875,3814.0,3813.9,1.30032]
[1760260101018,0.52526875,3814.0,3813.9,1.30032]
[1760260101215,0.00282411,3814.0,3813.9,1.30032]
[1760260101515,4.11e-06,3814.0,3813.9,1.52826405]
[1760260101912,4.11e-06,3814.0,3813.9,6.52829155]
[1760260102114,4.11e-06,3814.0,3813.9,6.52826405]
[1760260102906,4.11e-06,3814.0,3813.9,6.30032]
[1760260103112,4.11e-06,3814.0,3813.9,1.30032]
[1760260103410,0.23270411,3814.0,3813.9,1.30032]
[1760260103613,0.58930411,3814.0,3813.9,1.30032]
[1760260103809,4.11e-06,3814.0,3813.9,1.30032]
[1760260104018,4.11e-06,3814.0,3813.9,0.94372]
[1760260104215,1.46464875,3814.0,3813.4,3.2078]
[1760260104523,0.8092,3813.1,3813.0,4.50823]
[1760260105116,0.5893,3813.1,3813.0,4.50823]
[1760260105319,1.11174464,3813.1,3813.0,4.50823]
[1760260106018,0.75514464,3813.1,3813.0,4.50823]
[1760260106522,0.52244464,3813.1,3813.0,4.64753]
[1760260106823,0.3566,3813.4,3813.3,1.30039]
[1760260107021,0.5893,3813.4,3813.3,1.30039]
[1760260107321,1.33164464,3813.4,3813.3,1.30039]
[1760260107618,42.13164464,3813.4,3813.3,1.30039]
[1760260108418,41.32244464,3813.4,3813.3,1.30039]
[1760260108822,40.8,3813.4,3813.3,1.30039]
[1760260109517,0.3566,3813.8,3813.7,0.47174]
[1760260109720,0.8092,3813.8,3813.7,1.30034]
[1760260110125,42.13164464,3813.8,3813.7,1.30034]
[1760260110718,41.91174464,3813.8,3813.7,1.30034]
[1760260111226,42.13164464,3813.8,3813.7,0.472]
[1760260111721,42.13164464,3813.8,3813.0,3.2078]
[1760260111722,0.133,3813.5,3813.0,3.2078]
[1760260111917,0.8092,3813.1,3813.0,1.30042]
[1760260112114,1.33164464,3813.1,3813.0,0.94382]
[1760260112317,0.8092,3813.1,3813.0,1.30042]
[1760260112516,1.33164464,3813.1,3813.0,1.30042]
[1760260114019,1.80346464,3813.1,3812.5,3.3267]
[1760260114226,0.2327,3812.2,3812.1,0.47473118]
[1760260114424,0.87904464,3812.4,3812.2,0.47192]
[1760260114723,1.11174464,3812.4,3812.3,0.472]
[1760260114920,1.11174464,3812.4,3812.3,0.8286]
[1760260115115,1.33164464,3812.4,3812.3,0.8286]
[1760260116324,1.80354464,3812.4,3812.3,0.2317]
[1760260116527,1.28113,3812.2,3812.1,0.00273118]
[1760260116728,5.01137464,3812.2,3812.1,0.00273118]
[1760260117224,0.9422,3811.5,3811.4,0.2317]
[1760260117429,1.46464464,3811.5,3811.2,0.26238111]
[1760260117623,0.8092,3811.3,3811.2,0.26238111]
[1760260117927,0.8092,3811.3,3811.2,0.49408111]
[1760260118121,0.81168627,3811.3,3811.2,0.49408111]
[1760260118330,0.81168627,3811.3,3811.2,0.49635169]
[1760260119328,0.81168627,3811.3,3811.2,1.09325169]
[1760260119632,0.81168627,3811.3,3811.2,0.73665169]
[1760260120727,0.81168627,3811.3,3811.2,1.09055169]
[1760260121328,41.61168627,3811.3,3811.2,1.09055169]
[1760260121923,41.03518627,3811.3,3811.2,1.09055169]
[1760260122628,0.23518627,3811.3,3811.2,1.09055169]
[1760260123025,0.58758627,3811.3,3811.2,1.09055169]
[1760260123525,0.82188627,3811.3,3811.2,1.09055169]
[1760260123925,0.82188627,3811.3,3811.2,1.56260169]
[1760260126529,0.82188627,3811.3,3811.2,1.09055169]
[1760260126836,0.82188627,3811.3,3811.2,0.26465169]
[1760260127132,0.82188627,3811.3,3811.2,0.97830169]
[1760260127326,0.82188627,3811.3,3811.2,1.20750169]
[1760260127635,0.82188627,3811.3,3811.2,1.54110169]
[1760260128328,0.00248627,3811.3,3811.2,1.76981625]
[1760260128635,0.00248627,3811.3,3811.2,4.74890169]
[1760260130036,0.00248627,3811.3,3811.2,4.97761625]
[1760260130341,0.00248627,3811.3,3811.2,4.74890169]
[1760260135850,3.2078,3812.1,3812.0,1.41275]
[1760260136148,3.2078,3812.9,3812.4,0.3336]
[1760260136449,3.2078,3812.9,3812.8,0.8044]
[1760260136636,44.5798,3812.9,3812.8,0.8044]
[1760260136842,45.33847898,3812.9,3812.5,0.47188]
[1760260137041,1.32874464,3812.7,3812.6,1.27627]
[1760260137950,0.74204464,3812.7,3812.6,1.27627]
[1760260138749,1.32874464,3812.7,3812.6,1.27627]
[1760260139144,1.32874464,3812.7,3812.6,0.8044]
[1760260139345,0.4539,3812.2,3811.9,0.3336]
[1760260139549,0.8063,3812.1,3812.0,0.2416]
[1760260139752,0.8063,3812.1,3812.0,0.4708]
[1760260139951,1.32874464,3812.1,3812.0,1.27635]
[1760260140148,0.61635,3812.0,3811.7,3.2078]
[1760260140448,1.80072464,3811.8,3811.7,3.2078]
[1760260141752,42.60072464,3811.8,3811.7,3.2078]
[1760260142153,0.4539,3811.3,3811.2,0.50625169]
[1760260142452,1.32874464,3811.3,3811.2,0.26465169]
[1760260142751,1.80078464,3811.3,3811.2,0.26465169]
[1760260142949,0.2196,3810.6,3810.5,0.3336]
[1760260143156,1.32874464,3810.6,3810.5,0.5752]
[1760260143553,1.32874464,3810.6,3810.5,0.2416]
[1760260143852,0.8063,3810.4,3810.3,3.2078]
[1760260144058,4.53654464,3810.4,3810.3,0.00314127]
[1760260144353,44.88264464,3810.4,3809.5,0.60866]
[1760260144655,0.74204464,3809.6,3809.5,0.2416]
[1760260144957,0.2196,3809.6,3809.5,0.8044]
[1760260145154,0.8063,3809.6,3809.5,0.4708]
[1760260145353,0.00264967,3809.6,3809.5,0.8069971]
[1760260145558,0.00264967,3809.6,3809.5,0.9433971]
[1760260145859,0.22224967,3809.6,3809.5,0.8069971]
[1760260146058,0.22224967,3809.6,3809.5,1.2792571]
[1760260146252,0.00264967,3809.6,3809.5,1.2792571]
[1760260147459,1.09709431,3809.6,3809.5,1.2792571]
[1760260150352,1.33139431,3809.6,3809.5,0.8069971]
[1760260150554,1.33139431,3809.6,3809.5,1.2792571]
[1760260150957,1.09709431,3809.6,3809.5,1.2792571]
[1760260151259,0.74469431,3809.6,3809.5,1.2792571]
[1760260151557,0.74469431,3809.6,3809.5,1.4245571]
[1760260151958,0.00264967,3809.6,3809.5,1.4245571]
[1760260152158,1.11199431,3809.6,3809.5,1.4245571]
[1760260152364,1.11199431,3809.6,3809.5,1.2792571]
[1760260152856,1.35359431,3809.6,3809.5,1.2792571]
[1760260153360,1.35359431,3809.6,3809.5,0.0025971]
[1760260153361,6.35359431,3809.6,3809.5,0.0025971]
[1760260154961,47.15359431,3809.6,3809.5,0.0025971]
[1760260155363,47.62584431,3809.6,3809.5,0.0025971]
[1760260156861,46.79639431,3809.6,3808.9,3.2078]
[1760260157158,46.79639431,3809.6,3808.7,0.47236]
[1760260157159,0.2297,3808.8,3808.7,0.47236]
[1760260157362,0.99374464,3808.7,3808.6,0.4654]
[1760260157561,0.4713,3808.7,3808.5,0.47238]
[1760260157759,0.4713,3808.7,3808.1,3.5474]
[1760260157760,0.4713,3808.4,3808.3,0.70111]
[1760260157960,1.35094464,3808.4,3808.3,0.70365296]
[1760260158165,0.8285,3808.4,3808.3,0.70365296]
[1760260158664,0.8285,3808.8,3808.7,0.70106]
[1760260158865,0.8285,3808.8,3808.7,1.27736]
[1760260159054,0.8285,3808.8,3808.3,0.00254296]
[1760260159055,0.5869,3809.0,3808.9,0.93774]
[1760260159260,0.2297,3809.2,3809.1,0.70101]
[1760260159568,1.35094464,3809.2,3809.1,0.70101]
[1760260160268,1.35094464,3809.2,3809.1,0.2287]
[1760260160465,1.35094464,3809.2,3809.1,0.5683]
[1760260160763,1.35094464,3809.2,3809.1,0.2287]
[1760260160965,1.35094464,3809.2,3809.1,0.70101]
[1760260161372,0.2297,3808.7,3808.6,0.2287]
[1760260161668,0.99374464,3808.7,3808.5,0.47238]
[1760260161966,3.353,3809.0,3808.5,0.70108]
[1760260161967,1.35094464,3808.6,3808.5,0.70108]
[1760260162363,1.35094464,3808.6,3808.5,1.04068]
[1760260162563,1.35094464,3808.6,3808.5,1.27738]
[1760260165773,3.5827,3809.0,3808.9,0.70104]
[1760260165973,3.8243,3809.0,3808.9,0.70104]
[1760260166175,0.99374464,3809.0,3808.9,1.27734]
[1760260166375,1.49614464,3809.0,3808.9,0.93774]
[1760260166865,1.49614464,3809.0,3808.9,0.70104]
[1760260168171,1.35094464,3809.0,3808.9,1.27734]
[1760260168873,0.5869,3809.0,3808.9,1.27734]
[1760260169173,0.9737,3809.0,3808.9,0.93774]
[1760260169370,40.80264967,3809.6,3808.9,0.93774]
[1760260169371,40.80264967,3809.6,3809.3,0.805]
[1760260169668,0.58954967,3809.6,3809.5,1.27726]
[1760260169875,0.00264967,3809.6,3809.5,1.42256]
[1760260172371,0.8285,3809.2,3809.1,0.70101]
[1760260172565,0.8285,3809.2,3809.1,1.27731]
[1760260172972,1.35094464,3809.2,3809.1,0.93771]
[1760260173575,0.4713,3808.8,3808.7,0.70106]
[1760260173766,0.8285,3808.8,3808.5,3.2078]
[1760260174074,0.8285,3808.8,3808.5,0.47239]
[1760260174276,1.35094464,3808.6,3808.5,0.70109]
[1760260174480,0.1452,3808.5,3808.3,0.00254296]
[1760260174678,0.8285,3808.4,3808.3,0.70364296]
[1760260175171,0.8285,3808.4,3808.3,0.23124296]
[1760260175378,1.35094464,3808.4,3808.3,0.00254296]
[1760260175570,1.35094464,3808.4,3808.3,0.47495296]
[1760260176172,42.15094464,3808.4,3808.3,0.47495296]
[1760260176876,42.15094464,3808.4,3808.3,0.70365296]
[1760260177370,42.15094464,3808.4,3808.3,0.00254296]
[1760260178377,1.18104,3808.3,3807.8,0.02626188]
[1760260178672,0.1452,3807.0,3806.9,0.2287]
[1760260178867,0.5869,3807.0,3806.9,0.5683]
[1760260179068,0.5869,3807.0,3806.3,0.00082724]
[1760260179069,1.49614464,3807.0,3806.3,0.00082724]
[1760260179265,0.9737,3807.0,3806.3,0.00082724]
[1760260179470,0.6165,3806.5,3806.4,0.00082724]
[1760260179677,1.49888134,3806.5,3806.4,0.00082724]
[1760260179973,0.0027367,3806.5,3806.4,0.81302724]
[1760260180273,4.33018134,3806.5,3806.4,0.2294]
[1760260180471,4.33018134,3806.5,3806.3,0.0019738]
[1760260180667,0.98784464,3806.4,3806.3,0.0019738]
[1760260180874,1.33534464,3806.4,3806.3,0.0019738]
[1760260182775,2.1208643,3806.4,3806.3,0.0019738]
[1760260184872,1.33534464,3806.4,3806.3,0.0019738]
[1760260185475,2.11964208,3806.4,3806.3,0.0019738]
[1760260185678,1.33534464,3806.4,3806.3,0.0019738]
[1760260186376,0.86994464,3806.4,3806.3,0.8024738]
[1760260186579,3.2105367,3806.5,3806.4,0.47265]
[1760260186787,3.2105367,3806.5,3806.4,1.27315]
[1760260187676,0.0027367,3806.5,3806.4,1.27315]
[1760260188481,0.0027367,3806.5,3806.4,6.27315]
[1760260190676,0.2322367,3806.5,3806.4,6.27315]
[1760260190882,0.8109367,3806.5,3806.4,6.27315]
[1760260191082,0.0027367,3806.5,3806.4,6.27315]
[1760260191788,1.4305,3806.8,3806.7,1.27311]
[1760260192181,0.65490737,3806.8,3806.7,6.27311]
[1760260192985,0.657023,3806.8,3806.7,6.27311]
[1760260193287,0.00211563,3806.8,3806.7,6.27404763]
[1760260193686,0.00211563,3806.8,3806.7,6.27311]
[1760260193984,0.00211563,3806.8,3806.7,6.27407523]
[1760260195375,3.29594389,3807.8,3807.7,0.8005]
[1760260195681,4.30213348,3807.8,3807.7,0.462]
[1760260195883,4.82457812,3807.8,3807.7,0.8005]
[1760260196085,4.12950812,3807.8,3807.7,0.8005]
[1760260196283,3.02434961,3807.8,3807.7,0.8005]
[1760260197185,2.24076002,3807.8,3807.7,0.8005]
[1760260197783,2.47026002,3807.8,3807.7,0.8005]
[1760260198682,2.24076002,3807.8,3807.7,0.8005]
[1760260199085,0.00288613,3807.8,3807.7,1.27298]
[1760260199480,0.58848613,3807.8,3807.7,0.8005]
[1760260199679,0.81108613,3807.8,3807.7,0.8005]
[1760260200082,0.00288613,3807.8,3807.7,0.8005]
[1760260200287,0.00288613,3807.8,3807.7,1.27298]
[1760260203289,0.81108613,3807.8,3807.7,1.27298]
[1760260203684,0.23238613,3807.8,3807.7,1.27298]
[1760260205291,0.00288613,3807.8,3807.7,1.27298]
[1760260206486,3.2078,3808.8,3808.5,0.1336]
[1760260206792,3.2078,3809.2,3809.1,1.27281]
[1760260207381,3.2078,3809.7,3809.6,0.462]
[1760260207681,4.31869562,3809.7,3809.6,0.8030293]
[1760260207884,45.11869562,3809.7,3809.6,1.2752793]
[1760260208091,45.11869562,3809.7,3809.6,0.8030293]
[1760260208388,4.31869562,3809.7,3809.6,0.8030293]
[1760260209284,4.54129562,3809.7,3809.6,0.8030293]
[1760260209481,4.31179562,3809.7,3809.6,0.8030293]
[1760260209791,0.52529562,3809.7,3809.6,0.8030293]
[1760260210091,0.00285098,3809.7,3809.6,0.8030293]
[1760260211394,0.24575098,3809.7,3809.6,0.8030293]
[1760260211888,0.00285098,3809.7,3809.6,0.8030293]
[1760260212194,3.21065098,3809.7,3809.6,0.8030293]
[1760260212893,0.00285098,3809.7,3809.6,0.8030293]
[1760260213988,0.00285098,3809.7,3809.6,1.2752793]
[1760260221804,3.2078,3810.6,3810.5,0.47214]
[1760260221991,3.2078,3810.6,3810.5,1.39414]
[1760260222193,3.73024464,3810.6,3810.5,1.39414]
[1760260222693,3.2078,3811.0,3810.9,0.91618]
[1760260222891,3.98885291,3811.0,3810.9,1.25798]
[1760260223091,4.51129755,3811.0,3810.9,1.25798]
[1760260225992,3.73250426,3811.0,3810.9,1.25798]
[1760260226398,4.51150367,3811.0,3810.9,1.25798]
[1760260228606,0.5996,3810.2,3810.1,0.4441]
[1760260228802,3.5697,3810.7,3810.6,0.47213]
[1760260229115,5.11412667,3810.7,3810.6,1.25803]
[1760260229902,4.87122667,3810.7,3810.6,1.25803]
[1760260230099,3.98688203,3810.7,3810.6,1.25803]
[1760260232406,0.00225962,3811.0,3810.9,1.25799]
[1760260234401,0.00225962,3811.0,3810.9,4.46579]
[1760260235001,0.00225962,3811.0,3810.9,9.46579]
[1760260235204,0.83385,3812.0,3811.8,0.3418]
[1760260235399,41.87675,3812.0,3811.9,0.7859]
[1760260235802,42.39919464,3812.0,3811.9,0.7859]
[1760260236199,41.92919467,3812.0,3811.9,0.7859]
[1760260236507,42.03924467,3812.0,3811.9,0.7859]
[1760260237506,41.56729467,3812.0,3811.9,0.7859]
[1760260238607,42.03924467,3812.0,3811.9,0.7859]
[1760260238908,41.56729467,3812.0,3811.9,0.7859]
[1760260239113,41.32439467,3812.0,3811.9,1.25786]
[1760260239610,0.00195003,3812.0,3811.9,1.25786]
[1760260240112,0.00195003,3812.0,3811.9,6.25786]
[1760260240311,3.2078,3812.6,3812.5,0.602]
[1760260240612,0.022,3812.8,3812.7,1.26837]
[1760260241215,0.022,3812.8,3812.7,4.47617]
[1760260241406,0.02493435,3812.8,3812.7,4.47905905]
[1760260241713,3.2078,3813.6,3813.5,0.9395]
[1760260241909,3.2078,3814.0,3813.9,0.459]
[1760260242110,1.04835,3813.6,3813.5,0.7965]
[1760260242414,0.75214464,3813.6,3813.5,0.9395]
[1760260242613,0.75528398,3813.6,3813.5,0.9395]
[1760260243111,1.10218398,3813.6,3813.5,0.7965]
[1760260243905,0.75528398,3813.6,3813.5,0.7965]
[1760260244107,1.22703398,3813.6,3813.5,0.7965]
[1760260244412,1.98705207,3813.6,3813.5,0.7965]
[1760260245714,2.56515207,3813.6,3813.5,0.7965]
[1760260247620,0.4718,3813.2,3813.1,0.8073]
[1760260247810,0.98391809,3813.2,3813.1,0.8073]
[1760260248117,1.50636273,3813.2,3813.1,0.8073]
[1760260248414,1.97816273,3813.2,3813.1,0.8073]
[1760260248621,1.28246273,3813.2,3813.1,0.8073]
[1760260249319,1.50636273,3813.2,3813.1,0.8073]
[1760260249621,1.97816273,3813.2,3813.1,0.8073]
[1760260249810,1.50636273,3813.2,3813.1,0.8073]
[1760260250016,1.28246273,3813.2,3813.1,0.8073]
[1760260250621,1.75426273,3813.2,3813.1,0.8073]
[1760260251020,2.55626273,3813.2,3813.1,0.8073]
[1760260254926,1.28246273,3813.2,3813.1,0.8073]
[1760260256121,1.75426273,3813.2,3813.1,0.8073]
[1760260257931,42.55426273,3813.2,3813.1,0.8073]
[1760260259333,42.08246273,3813.2,3813.1,0.8073]
[1760260259837,42.55426273,3813.2,3813.1,0.8073]
[1760260260138,42.08246273,3813.2,3813.1,0.8073]
[1760260260432,0.76001809,3813.2,3813.1,0.8073]
[1760260260832,0.76001809,3813.2,3813.1,1.27912]
[1760260261139,0.76001809,3813.2,3813.1,0.8073]
[1760260261728,0.76001809,3813.2,3813.1,1.27912]
[1760260262036,0.00313934,3813.6,3813.1,0.8073]
[1760260262236,0.00313934,3813.6,3813.5,0.9403]
[1760260262742,40.8,3814.0,3813.9,0.8073]
[1760260262938,41.0239,3814.0,3813.9,0.8073]
[1760260263139,41.32244464,3814.0,3813.9,0.8073]
[1760260263544,0.86614464,3814.0,3813.9,0.8073]
[1760260263734,0.86837762,3814.0,3813.9,0.8073]
[1760260264434,1.93547762,3814.0,3813.9,0.8073]
[1760260266936,41.32467762,3814.0,3813.9,1.27902]
[1760260267142,1.03923,3814.6,3814.5,0.4572]
[1760260267328,1.03923,3814.6,3814.5,0.8073]
[1760260267534,41.89004464,3814.6,3814.5,0.8073]
[1760260267735,41.32244464,3814.6,3814.5,0.9403]
[1760260268050,41.32467223,3814.6,3814.5,0.9403]
[1760260268339,41.32467223,3814.6,3814.5,1.41194]
[1760260268735,40.80222759,3814.6,3814.5,1.41194]
[1760260269038,0.00222759,3814.6,3814.5,1.41194]
[1760260269239,3.67938,3815.1,3814.5,1.41194]
[1760260269240,3.2078,3815.1,3815.0,0.9403]
[1760260269438,4.42571464,3815.1,3815.0,0.9403]
[1760260269742,4.29784464,3815.1,3815.0,1.41188]
[1760260269935,3.73024464,3815.1,3815.0,1.41188]
[1760260270242,3.73254755,3815.1,3815.0,1.41188]
[1760260270837,5.02171755,3815.1,3815.0,0.8073]
[1760260271037,3.73254755,3815.1,3815.0,1.41658]
[1760260271342,3.21010291,3815.1,3815.0,1.41658]
[1760260272344,0.00230291,3815.1,3815.0,1.41658]
[1760260272534,0.00230291,3815.1,3815.0,0.945]
[1760260272739,0.00230291,3815.1,3815.0,1.41658]
[1760260273633,0.23080291,3815.1,3815.0,0.5811]
[1760260273944,0.23080291,3815.1,3815.0,0.8085]
[1760260274138,0.98905274,3815.1,3815.0,0.9462]
[1760260274441,0.76055274,3815.1,3815.0,0.9462]
[1760260275039,0.76055274,3815.1,3815.0,1.41778]
[1760260275640,0.76055274,3815.1,3815.0,0.9462]
[1760260276042,0.76055274,3815.1,3815.0,1.41778]
[1760260276742,0.76055274,3815.1,3815.0,0.9462]
[1760260276949,2.57216738,3815.1,3815.0,0.8085]
[1760260277632,2.33006738,3815.1,3815.0,0.8085]
[1760260279653,2.57216738,3815.1,3815.0,0.4584]
[1760260280145,2.57216738,3815.1,3815.0,0.7957]
[1760260280845,1.75456738,3815.1,3815.0,0.9334]
[1760260281146,0.99631755,3815.1,3815.0,0.9334]
[1760260281742,0.347,3816.7,3816.5,0.4586]
[1760260281944,0.92668746,3816.8,3815.2,2.69508]
[1760260281945,0.8176,3816.8,3816.7,0.7959]
[1760260282137,1.57542491,3816.8,3816.7,0.4586]
[1760260282343,42.08026955,3816.8,3816.7,0.7959]
[1760260282648,1.28026955,3816.8,3816.7,1.26727]
[1760260282850,0.76118724,3816.8,3816.7,1.2692405]
[1760260283046,1.28320218,3816.8,3816.7,1.2692405]
[1760260283241,0.52580697,3816.8,3816.7,1.2692405]
[1760260284139,2.10032965,3816.8,3816.7,0.4605705]
[1760260284340,2.10032965,3816.8,3816.7,0.2331705]
[1760260284746,2.10032965,3816.8,3816.7,0.7978705]
[1760260285450,1.28272965,3816.8,3816.7,0.7978705]
[1760260285853,0.00336233,3816.8,3816.7,0.7978705]
[1760260287846,0.00336233,3816.8,3816.7,1.2692405]
[1760260289050,0.00336233,3816.8,3816.7,4.4770405]
[1760260290347,40.8,3817.5,3817.4,0.92988]
[1760260290549,41.55491805,3817.5,3817.4,1.26718]
[1760260290755,3.2078,3818.0,3817.9,1.26712]
[1760260291051,3.2078,3818.4,3818.3,0.7959]
[1760260291252,40.8,3818.4,3818.3,0.7959]